fUSD/lending_fUSD_20240318
["ID","MTS","AMOUNT","RATE_DAILY","PERIOD"]
[319454033,1710781853482,-500.0,0.00021989,2]
[319454034,1710781853491,-500.0,0.00021989,2]
[319454035,1710781853500,-500.0,0.00021989,2]
[319454036,1710781853509,-500.0,0.00021989,2]
[319454037,1710781853517,-497.96483345,0.00021989,2]
[319454038,1710781853526,-500.0,0.00021989,2]
[319454039,1710781853535,-500.0,0.00021989,2]
[319454040,1710781853544,-500.0,0.00021989,2]
[319454041,1710781853553,-500.0,0.00021989,2]
[319454042,1710781853562,-500.0,0.00021989,2]
[319454043,1710781853570,-793.07,0.00021989,2]
[319454044,1710781853579,-778.69,0.00021989,2]
[319454045,1710781853588,-500.0,0.00021989,2]
[319454046,1710781853600,-500.0,0.00021989,2]
[319454047,1710781853611,-500.0,0.00021989,2]
[319454048,1710781853620,-696.99,0.00021989,2]
[319454049,1710781853629,-500.0,0.00021989,2]
[319454050,1710781853638,-500.0,0.00021989,2]
[319454051,1710781853647,-500.0,0.00021989,2]
[319454052,1710781853656,-500.0,0.00021989,2]
[319454053,1710781853666,-1202.94,0.00021989,2]
[319454054,1710781853675,-500.0,0.00021989,2]
[319454055,1710781853684,-500.0,0.00021989,2]
[319454056,1710781853693,-500.0,0.00021989,2]
[319454057,1710781853702,-500.0,0.00021989,2]
[319454058,1710781853712,-500.0,0.00021989,2]
[319454059,1710781853721,-500.0,0.00021989,2]
[319454060,1710781853730,-500.0,0.00021989,2]
[319454061,1710781853740,-654.68,0.00021989,2]
[319454062,1710781853749,-500.0,0.00021989,2]
[319454063,1710781853759,-1275.08,0.00021989,2]
[319454064,1710781853769,-500.0,0.00021989,2]
[319454065,1710781853778,-1754.69,0.00021989,2]
[319454066,1710781853787,-500.0,0.00021989,2]
[319454067,1710781853796,-500.0,0.00021989,2]
[319454068,1710781853805,-974.95,0.00021989,2]
[319454069,1710781853814,-1460.53,0.00021989,2]
[319454070,1710781853823,-500.0,0.00021989,2]
[319454071,1710781853832,-740.41,0.00021989,2]
[319454072,1710781853841,-500.0,0.00021989,2]
[319454073,1710781853857,-1592.55,0.00021989,2]
[319454074,1710781853866,-701.48,0.00021989,2]
[319454075,1710781853875,-500.0,0.00021989,2]
[319454076,1710781853884,-500.0,0.00021989,2]
[319454077,1710781853894,-500.0,0.00021989,2]
[319454078,1710781853903,-500.0,0.00021989,2]
[319454079,1710781853913,-500.0,0.00021989,2]
[319454080,1710781853922,-500.0,0.00021989,2]
[319454081,1710781853932,-500.0,0.00021989,2]
[319454082,1710781853941,-669.23,0.00021989,2]
[319454083,1710781853952,-375.41042805,0.00021989,2]
[319454084,1710781853963,-500.0,0.00021989,2]
[319454085,1710781853974,-377.29521943,0.00021989,2]
[319454086,1710781853985,-500.0,0.00021989,2]
[319454087,1710781853995,-500.0,0.00021989,2]
[319454088,1710781854005,-500.0,0.00021989,2]
[319454089,1710781854015,-500.0,0.00021989,2]
[319454090,1710781854025,-500.0,0.00021989,2]
[319454091,1710781854035,-500.0,0.00021989,2]
[319454092,1710781854045,-500.0,0.00021989,2]
[319454093,1710781854054,-500.0,0.00021989,2]
[319454094,1710781854064,-691.6,0.00021989,2]
[319454095,1710781854073,-500.0,0.00021989,2]
[319454096,1710781854082,-1307.15,0.00021989,2]
[319454097,1710781854091,-500.0,0.00021989,2]
[319454098,1710781854104,-500.0,0.00021989,2]
[319454099,1710781854114,-500.0,0.00021989,2]
[319454100,1710781854122,-500.0,0.00021989,2]
[319454101,1710781854131,-501.88616424,0.00021989,2]
[319454102,1710781854140,-1626.86,0.00021989,2]
[319454103,1710781854149,-564.53,0.00021989,2]
[319454104,1710781854159,-500.0,0.00021989,2]
[319454105,1710781854169,-500.0,0.00021989,2]
[319454106,1710781854178,-779.79,0.00021989,2]
[319454107,1710781854188,-752.24,0.00021989,2]
[319454108,1710781854198,-755.37,0.00021989,2]
[319454109,1710781854208,-1124.52,0.00021989,2]
[319454110,1710781854217,-500.0,0.00021989,2]
[319454111,1710781854227,-500.0,0.00021989,2]
[319454112,1710781854236,-500.0,0.00021989,2]
[319454113,1710781854245,-500.0,0.00021989,2]
[319454114,1710781854255,-500.0,0.00021989,2]
[319454115,1710781854264,-500.0,0.00021989,2]
[319454116,1710781854274,-500.0,0.00021989,2]
[319454117,1710781854283,-500.0,0.00021989,2]
[319454118,1710781854292,-141860.12,0.0002199,2]
[319454119,1710781854302,-19989.62212348,0.0002199,5]
[319454120,1710781854311,-500.0,0.00021994,2]
[319454121,1710781854321,-500.0,0.00021994,2]
[319454122,1710781854337,-500.0,0.00021994,2]
[319454123,1710781854350,-500.0,0.00021994,2]
[319454124,1710781854360,-500.0,0.00021994,2]
[319454125,1710781854369,-500.0,0.00021994,2]
[319454126,1710781854380,-500.0,0.00021994,2]
[319454127,1710781854389,-500.0,0.00021994,2]
[319454128,1710781854399,-500.0,0.00021994,2]
[319454129,1710781854409,-500.0,0.00021994,2]
[319454130,1710781854418,-500.0,0.00021994,2]
[319454131,1710781854428,-500.0,0.00021994,2]
[319454132,1710781854438,-500.0,0.00021994,2]
[319454133,1710781854448,-500.0,0.00021994,2]
[319454134,1710781854458,-500.0,0.00021994,2]
[319454135,1710781854467,-500.0,0.00021994,2]
[319454136,1710781854477,-500.0,0.00021994,2]
[319454137,1710781854486,-500.0,0.00021994,2]
[319454138,1710781854495,-500.0,0.00021994,2]
[319454139,1710781854505,-500.0,0.00021994,2]
[319454140,1710781854514,-500.0,0.00021994,2]
[319454141,1710781854523,-500.0,0.00021994,2]
[319454142,1710781854532,-500.0,0.00021994,2]
[319454143,1710781854542,-500.0,0.00021994,2]
[319454144,1710781854551,-500.0,0.00021994,2]
[319454145,1710781854560,-500.0,0.00021994,2]
[319454146,1710781854569,-500.0,0.00021994,2]
[319454147,1710781854578,-456.79519899,0.00021994,2]
[319454148,1710781854587,-500.0,0.00021994,2]
[319454149,1710781854596,-500.0,0.00021994,2]
[319454150,1710781854609,-500.0,0.00021994,2]
[319454151,1710781854618,-500.0,0.00021994,2]
[319454152,1710781854626,-501.7119246,0.00021994,2]
[319454153,1710781854635,-500.0,0.00021994,2]
[319454154,1710781854644,-501.22082926,0.00021994,2]
[319454155,1710781854653,-500.0,0.00021994,2]
[319454156,1710781854662,-500.0,0.00021994,2]
[319454157,1710781854671,-500.0,0.00021994,2]
[319454158,1710781854680,-500.0,0.00021994,2]
[319454159,1710781854689,-500.0,0.00021994,2]
[319454160,1710781854698,-500.0,0.00021994,2]
[319454161,1710781854708,-506.24907788,0.00021994,2]
[319454162,1710781854718,-500.0,0.00021994,2]
[319454163,1710781854727,-500.0,0.00021994,2]
[319454164,1710781854736,-645.20510565,0.00021994,2]
[319454165,1710781854745,-500.0,0.00021994,2]
[319454166,1710781854755,-174.8666106,0.00021994,2]
[319454167,1710781854764,-500.0,0.00021994,2]
[319454168,1710781854774,-500.0,0.00021994,2]
[319454169,1710781854783,-500.0,0.00021994,2]
[319454170,1710781854792,-500.0,0.00021994,2]
[319454171,1710781854800,-500.0,0.00021994,2]
[319454172,1710781854810,-500.0,0.00021994,2]
[319454173,1710781854819,-362.12956362,0.00021994,2]
[319454174,1710781854828,-500.0,0.00021994,2]
[319454175,1710781854838,-500.0,0.00021994,2]
[319454176,1710781854850,-500.0,0.00021994,2]
[319454177,1710781854859,-500.0,0.00021994,2]
[319454178,1710781854868,-500.0,0.00021994,2]
[319454179,1710781854877,-500.0,0.00021994,2]
[319454180,1710781854886,-500.0,0.00021994,2]
[319454181,1710781854895,-500.0,0.00021994,2]
[319454182,1710781854904,-500.0,0.00021994,2]
[319454183,1710781854913,-500.0,0.00021994,2]
[319454184,1710781854922,-500.0,0.00021994,2]
[319454185,1710781854932,-500.0,0.00021994,2]
[319454186,1710781854941,-500.0,0.00021994,2]
[319454187,1710781854950,-500.0,0.00021994,2]
[319454188,1710781854959,-500.0,0.00021994,2]
[319454189,1710781854968,-500.0,0.00021994,2]
[319454190,1710781854977,-509.57505747,0.00021994,2]
[319454191,1710781854986,-500.0,0.00021994,2]
[319454192,1710781854995,-500.0,0.00021994,2]
[319454193,1710781855004,-209.4078615,0.00021994,2]
[319454194,1710781855014,-500.0,0.00021994,2]
[319454195,1710781855023,-500.0,0.00021994,2]
[319454196,1710781855032,-500.0,0.00021994,2]
[319454197,1710781855042,-500.0,0.00021994,2]
[319454198,1710781855051,-500.0,0.00021994,2]
[319454199,1710781855062,-224.83562423,0.00021994,2]
[319454200,1710781855072,-500.0,0.00021994,2]
[319454201,1710781855081,-500.0,0.00021994,2]
[319454202,1710781855091,-500.0,0.00021994,2]
[319454203,1710781855104,-500.0,0.00021994,2]
[319454204,1710781855113,-520.74650539,0.00021994,2]
[319454205,1710781855123,-500.33477275,0.00021994,2]
[319454206,1710781855132,-500.0,0.00021994,2]
[319454207,1710781855141,-500.0,0.00021994,2]
[319454208,1710781855150,-500.0,0.00021994,2]
[319454209,1710781855159,-500.0,0.00021994,2]
[319454210,1710781855169,-500.0,0.00021994,2]
[319454211,1710781855179,-500.0,0.00021994,2]
[319454212,1710781855188,-194.8139246,0.00021994,2]
[319454213,1710781855198,-500.0,0.00021994,2]
[319454214,1710781855207,-500.30514041,0.00021994,2]
[319454215,1710781855218,-500.0,0.00021994,2]
[319454216,1710781855229,-500.0,0.00021994,2]
[319454217,1710781855239,-500.0,0.00021994,2]
[319454218,1710781855249,-500.0,0.00021994,2]
[319454219,1710781855258,-500.0,0.00021994,2]
[319454220,1710781855267,-500.0,0.00021994,2]
[319454221,1710781855277,-553.67820757,0.00021994,2]
[319454222,1710781855287,-549.43786628,0.00021994,2]
[319454223,1710781855297,-500.0,0.00021994,2]
[319454224,1710781855306,-500.0,0.00021994,2]
[319454225,1710781855316,-500.0,0.00021994,2]
[319454226,1710781855327,-500.0,0.00021994,2]
[319454227,1710781855341,-500.0,0.00021994,2]
[319454228,1710781855355,-383.8814928,0.00021994,2]
[319454229,1710781855365,-500.0,0.00021994,2]
[319454230,1710781855377,-500.0,0.00021994,2]
[319454231,1710781855386,-500.0,0.00021994,2]
[319454232,1710781855395,-500.0,0.00021994,2]
[319454233,1710781855406,-500.0,0.00021994,2]
[319454234,1710781855416,-500.0,0.00021994,2]
[319454235,1710781855426,-500.0,0.00021994,2]
[319454236,1710781855435,-500.0,0.00021994,2]
[319454237,1710781855445,-500.0,0.00021994,2]
[319454238,1710781855455,-500.0,0.00021994,2]
[319454239,1710781855465,-500.0,0.00021994,2]
[319454240,1710781855475,-439.87705594,0.00021994,2]
[319454241,1710781855485,-500.0,0.00021994,2]
[319454242,1710781855495,-500.0,0.00021994,2]
[319454243,1710781855507,-359.31078395,0.00021994,2]
[319454244,1710781855518,-500.0,0.00021994,2]
[319454245,1710781855529,-500.0,0.00021994,2]
[319454246,1710781855539,-500.0,0.00021994,2]
[319454247,1710781855549,-500.0,0.00021994,2]
[319454248,1710781855560,-500.0,0.00021994,2]
[319454249,1710781855570,-500.0,0.00021994,2]
[319454250,1710781855580,-500.0,0.00021994,2]
[319454251,1710781855591,-500.0,0.00021994,2]
[319454252,1710781855604,-500.0,0.00021994,2]
[319454253,1710781855614,-500.0,0.00021994,2]
[319454254,1710781855625,-500.0,0.00021994,2]
[319454255,1710781855635,-500.0,0.00021994,2]
[319454256,1710781855645,-500.0,0.00021994,2]
[319454257,1710781855655,-500.0,0.00021994,2]
[319454258,1710781855666,-500.0,0.00021994,2]
[319454259,1710781855676,-500.0,0.00021994,2]
[319454260,1710781855686,-500.0,0.00021994,2]
[319454261,1710781855696,-500.0,0.00021994,2]
[319454262,1710781855706,-500.0,0.00021994,2]
[319454263,1710781855717,-179.9301211,0.00021994,2]
[319454264,1710781855727,-500.0,0.00021994,2]
[319454265,1710781855738,-500.0,0.00021994,2]
[319454266,1710781855748,-500.0,0.00021994,2]
[319454267,1710781855758,-500.0,0.00021994,2]
[319454268,1710781855769,-500.0,0.00021994,2]
[319454269,1710781855779,-500.0,0.00021994,2]
[319454270,1710781855790,-500.43237627,0.00021994,2]
[319454271,1710781855800,-500.0,0.00021994,2]
[319454272,1710781855810,-200.0,0.00021994,10]
[319454273,1710781855820,-500.0,0.00021994,2]
[319454274,1710781855831,-500.0,0.00021994,2]
[319454275,1710781855842,-500.0,0.00021994,2]
[319454276,1710781855857,-500.0,0.00021994,2]
[319454277,1710781855866,-500.0,0.00021994,2]
[319454278,1710781855876,-500.0,0.00021994,2]
[319454279,1710781855885,-500.0,0.00021994,2]
[319454280,1710781855895,-500.44601622,0.00021994,2]
[319454281,1710781855905,-230.36291186,0.00021994,2]
[319454282,1710781855915,-500.0,0.00021994,2]
[319454283,1710781855926,-500.0,0.00021994,2]
[319454284,1710781855936,-642.01214581,0.00021994,2]
[319454285,1710781855949,-501.34783503,0.00021994,2]
[319454286,1710781855958,-503.43972681,0.00021994,2]
[319454287,1710781855969,-500.0,0.00021994,2]
[319454288,1710781855979,-304.88882949,0.00021994,2]
[319454289,1710781855989,-500.23146459,0.00021994,2]
[319454290,1710781855999,-500.42988594,0.00021994,2]
[319454291,1710781856009,-500.0,0.00021994,2]
[319454292,1710781856019,-500.0,0.00021994,2]
[319454293,1710781856031,-500.0,0.00021994,2]
[319454294,1710781856042,-500.0,0.00021994,2]
[319454295,1710781856052,-500.0,0.00021994,2]
[319454296,1710781856063,-500.23721499,0.00021994,2]
[319454297,1710781856074,-286.64464474,0.00021994,2]
[319454298,1710781856084,-17910.3814805,0.00021994,2]
[319454299,1710781856094,-500.20153336,0.00021994,2]
[319454300,1710781856112,-500.13914633,0.00021994,2]
[319454301,1710781856124,-500.0,0.00021994,2]
[319454302,1710781856133,-376.99633955,0.00021994,2]
[319454303,1710781856144,-500.0,0.00021994,2]
[319454304,1710781856155,-1523.7682265,0.00021994,2]
[319454305,1710781856165,-1472.2134172,0.00021994,2]
[319454306,1710781856176,-1420.658608,0.00021994,2]
[319454307,1710781856186,-1369.1037987,0.00021994,2]
[319454308,1710781856195,-1317.5489894,0.00021994,2]
[319454309,1710781856205,-500.0,0.00021994,2]
[319454310,1710781856214,-1265.9941801,0.00021994,2]
[319454311,1710781856224,-500.0,0.00021994,2]
[319454312,1710781856234,-500.0,0.00021994,2]
[319454313,1710781856244,-301.84643987,0.00021994,2]
[319454314,1710781856254,-310.92097853,0.00021994,2]
[319454315,1710781856264,-500.0,0.00021994,2]
[319454316,1710781856274,-187.36729481,0.00021994,2]
[319454317,1710781856285,-500.15802878,0.00021994,2]
[319454318,1710781856296,-500.08685656,0.00021994,2]
[319454319,1710781856307,-500.22662299,0.00021994,2]
[319454320,1710781856316,-500.11914752,0.00021994,2]
[319454321,1710781856328,-4727.5135863,0.00021994,2]
[319454322,1710781856339,-4567.5640237,0.00021994,2]
[319454323,1710781856350,-4407.6144611,0.00021994,2]
[319454324,1710781856360,-4247.6648985,0.00021994,2]
[319454325,1710781856372,-4087.715336,0.00021994,2]
[319454326,1710781856382,-3927.7657734,0.00021994,2]
[319454327,1710781856393,-469.63468176,0.00021994,2]
[319454328,1710781856404,-495.72173431,0.00021994,2]
[319454329,1710781856414,-500.0,0.00021994,2]
[319454330,1710781856424,-501.79632219,0.00021994,2]
[319454331,1710781856434,-501.11245287,0.00021994,2]
[319454332,1710781856445,-501.0979143,0.00021994,2]
[319454333,1710781856456,-2229.1845309,0.00021994,2]
[319454334,1710781856466,-2153.7628353,0.00021994,2]
[319454335,1710781856477,-2078.3411397,0.00021994,2]
[319454336,1710781856488,-2002.9194441,0.00021994,2]
[319454337,1710781856498,-1927.4977485,0.00021994,2]
[319454338,1710781856509,-1852.0760529,0.00021994,2]
[319454339,1710781856520,-500.0,0.00021994,2]
[319454340,1710781856532,-1000.0,0.00021994,2]
[319454341,1710781856544,-500.0,0.00021994,2]
[319454342,1710781856557,-204.73990914,0.00021994,2]
[319454343,1710781856568,-500.0,0.00021994,2]
[319454344,1710781856582,-1681.2940267,0.00021994,2]
[319454345,1710781856594,-500.0,0.00021994,2]
[319454346,1710781856607,-239.0018447,0.00021994,2]
[319454347,1710781856618,-1275.05213522,0.00021999,2]
[319454348,1710781856629,-500.0,0.00021999,2]
[319454349,1710781856639,-193.2328209,0.00021999,2]
[319454350,1710781856650,-1027.19,0.00021999,2]
[319454351,1710781856662,-601.48,0.00021999,2]
[319454352,1710781856676,-500.0,0.00021999,2]
[319454353,1710781856686,-640.04,0.00021999,2]
[319454354,1710781856697,-500.0,0.00021999,2]
[319454355,1710781856708,-500.0,0.00021999,2]
[319454356,1710781856890,-500.0,0.00021999,2]
[319454357,1710781856911,-325.39929465,0.00021999,2]
[319454358,1710781856924,-2119.25,0.00021999,2]
[319454359,1710781856934,-1172.77,0.00021999,2]
[319454360,1710781856945,-500.0,0.00021999,2]
[319454361,1710781856955,-435.31863201,0.00021999,2]
[319454362,1710781856965,-500.0,0.00021999,2]
[319454363,1710781856977,-767.44,0.00021999,2]
[319454364,1710781856988,-1082.47,0.00021999,2]
[319454365,1710781856999,-1082.47,0.00021999,2]
[319454366,1710781857009,-1082.47,0.00021999,2]
[319454367,1710781857019,-1082.47,0.00021999,2]
[319454368,1710781857030,-1082.47,0.00021999,2]
[319454369,1710781857039,-1082.47,0.00021999,2]
[319454370,1710781857049,-1082.47,0.00021999,2]
[319454371,1710781857059,-1082.47,0.00021999,2]
[319454372,1710781857070,-1082.47,0.00021999,2]
[319454373,1710781857081,-1082.47,0.00021999,2]
[319454374,1710781857092,-1082.47,0.00021999,2]
[319454375,1710781857107,-1082.47,0.00021999,2]
[319454376,1710781857118,-1082.47,0.00021999,2]
[319454377,1710781857130,-1082.47,0.00021999,2]
[319454378,1710781857140,-1082.47,0.00021999,2]
[319454379,1710781857151,-500.0,0.00021999,2]
[319454380,1710781857162,-1082.47,0.00021999,2]
[319454381,1710781857172,-1082.47,0.00021999,2]
[319454382,1710781857182,-500.0,0.00021999,2]
[319454383,1710781857192,-500.0,0.00021999,2]
[319454384,1710781857201,-500.0,0.00021999,2]
[319454385,1710781857211,-502.34965688,0.00021999,2]
[319454386,1710781857220,-500.0,0.00021999,2]
[319454387,1710781857231,-500.0,0.00021999,2]
[319454388,1710781857242,-500.0,0.00021999,2]
[319454389,1710781857251,-500.0,0.00021999,2]
[319454390,1710781857261,-500.0,0.00021999,2]
[319454391,1710781857272,-500.0,0.00021999,2]
[319454392,1710781857281,-500.0,0.00021999,2]
[319454393,1710781857291,-500.0,0.00021999,2]
[319454394,1710781857302,-500.0,0.00021999,2]
[319454395,1710781857311,-500.0,0.00021999,2]
[319454396,1710781857321,-500.0,0.00021999,2]
[319454397,1710781857334,-500.0,0.00021999,2]
[319454398,1710781857344,-500.0,0.00021999,2]
[319454399,1710781857359,-500.0,0.00021999,2]
[319454400,1710781857372,-500.0,0.00021999,2]
[319454401,1710781857381,-500.0,0.00021999,2]
[319454402,1710781857391,-500.0,0.00021999,2]
[319454403,1710781857400,-500.0,0.00021999,2]
[319454404,1710781857410,-500.0,0.00021999,2]
[319454405,1710781857420,-500.0,0.00021999,2]
[319454406,1710781857430,-500.0,0.00021999,2]
[319454407,1710781857441,-500.0,0.00021999,2]
[319454408,1710781857452,-501.03535839,0.00021999,2]
[319454409,1710781857462,-500.0,0.00021999,2]
[319454410,1710781857472,-500.0,0.00021999,2]
[319454411,1710781857483,-500.0,0.00021999,2]
[319454412,1710781857493,-500.0,0.00021999,2]
[319454413,1710781857503,-1104.88,0.00021999,2]
[319454414,1710781857514,-500.0,0.00021999,2]
[319454415,1710781857524,-853.01,0.00021999,2]
[319454416,1710781857535,-504.17826329,0.00021999,2]
[319454417,1710781857546,-500.0,0.00021999,2]
[319454418,1710781857556,-500.0,0.00021999,2]
[319454419,1710781857567,-1913.34,0.00021999,2]
[319454420,1710781857578,-751.82,0.00021999,2]
[319454421,1710781857588,-1186.26,0.00021999,2]
[319454422,1710781857601,-500.0,0.00021999,2]
[319454423,1710781857611,-500.0,0.00021999,2]
[319454424,1710781857623,-795.11,0.00021999,2]
[319454425,1710781857634,-500.0,0.00021999,2]
[319454426,1710781857645,-1646.43,0.00021999,2]
[319454427,1710781857656,-1059.75,0.00021999,2]
[319454428,1710781857665,-530.29,0.00021999,2]
[319454429,1710781857676,-500.0,0.00021999,2]
[319454430,1710781857685,-557.76,0.00021999,2]
[319454431,1710781857696,-1981.38,0.00021999,2]
[319454432,1710781857706,-500.0,0.00021999,2]
[319454433,1710781857717,-500.0,0.00021999,2]
[319454434,1710781857728,-679.84,0.00021999,2]
[319454435,1710781857739,-500.0,0.00021999,2]
[319454436,1710781857751,-500.0,0.00021999,2]
[319454437,1710781857761,-500.0,0.00021999,2]
[319454438,1710781857772,-500.0,0.00021999,2]
[319454439,1710781857782,-500.0,0.00021999,2]
[319454440,1710781857793,-840.31,0.00021999,2]
[319454441,1710781857804,-500.0,0.00021999,2]
[319454442,1710781857815,-500.0,0.00021999,2]
[319454443,1710781857826,-501.72971082,0.00021999,2]
[319454444,1710781857837,-500.0,0.00021999,2]
[319454445,1710781857847,-500.0,0.00021999,2]
[319454446,1710781857859,-500.0,0.00021999,2]
[319454447,1710781857870,-156.22977586,0.00021999,2]
[319454448,1710781857880,-505.38434419,0.00021999,2]
[319454449,1710781857890,-500.0,0.00021999,2]
[319454450,1710781857901,-500.0,0.00021999,2]
[319454451,1710781857912,-500.0,0.00021999,2]
[319454452,1710781857923,-500.0,0.00021999,2]
[319454453,1710781857933,-500.0,0.00021999,2]
[319454454,1710781857944,-500.0,0.00021999,2]
[319454455,1710781857955,-500.0,0.00021999,2]
[319454456,1710781857965,-500.0,0.00021999,2]
[319454457,1710781857976,-500.0,0.00021999,2]
[319454458,1710781857986,-500.0,0.00021999,2]
[319454459,1710781857996,-1595.62,0.00021999,2]
[319454460,1710781858007,-1461.5,0.00021999,2]
[319454461,1710781858018,-542.39,0.00021999,2]
[319454462,1710781858028,-500.0,0.00021999,2]
[319454463,1710781858039,-612.43,0.00021999,2]
[319454464,1710781858049,-500.0,0.00021999,2]
[319454465,1710781858060,-500.0,0.00021999,2]
[319454466,1710781858071,-500.0,0.00021999,2]
[319454467,1710781858082,-868.33,0.00021999,2]
[319454468,1710781858093,-500.0,0.00021999,2]
[319454469,1710781858108,-500.0,0.00021999,2]
[319454470,1710781858117,-1520.32,0.00021999,2]
[319454471,1710781858129,-500.0,0.00021999,2]
[319454472,1710781858140,-358.85566126,0.00021999,2]
[319454473,1710781858151,-509.99,0.00021999,2]
[319454474,1710781858161,-1262.77,0.00021999,2]
[319454475,1710781858170,-671.41,0.00021999,2]
[319454476,1710781858181,-500.0,0.00021999,2]
[319454477,1710781858191,-647.27,0.00021999,2]
[319454478,1710781858202,-1217.82,0.00021999,2]
[319454479,1710781858212,-500.0,0.00021999,2]
[319454480,1710781858222,-1739.9,0.00021999,2]
[319454481,1710781858233,-1605.23,0.00021999,2]
[319454482,1710781858244,-1077.48,0.00021999,2]
[319454483,1710781858254,-500.0,0.00021999,2]
[319454484,1710781858263,-500.0,0.00021999,2]
[319454485,1710781858274,-1044.89,0.00021999,2]
[319454486,1710781858284,-2063.78,0.00021999,2]
[319454487,1710781858294,-500.0,0.00021999,2]
[319454488,1710781858304,-735.37,0.00021999,2]
[319454489,1710781858314,-924.8,0.00021999,2]
[319454490,1710781858325,-689.43,0.00021999,2]
[319454491,1710781858336,-629.72,0.00021999,2]
[319454492,1710781858345,-500.0,0.00021999,2]
[319454493,1710781858359,-2547.63,0.00021999,2]
[319454494,1710781858370,-1431.76,0.00021999,2]
[319454495,1710781858380,-1712.02,0.00021999,2]
[319454496,1710781858389,-500.0,0.00021999,2]
[319454497,1710781858398,-689.96,0.00021999,2]
[319454498,1710781858407,-2604.44,0.00021999,2]
[319454499,1710781858418,-574.85,0.00021999,2]
[319454500,1710781858427,-500.0,0.00021999,2]
[319454501,1710781858437,-500.0,0.00021999,2]
[319454502,1710781858447,-500.0,0.00021999,2]
[319454503,1710781858457,-500.0,0.00021999,2]
[319454504,1710781858466,-500.0,0.00021999,2]
[319454505,1710781858475,-500.0,0.00021999,2]
[319454506,1710781858484,-500.0,0.00021999,2]
[319454507,1710781858494,-404.72667655,0.00021999,2]
[319454508,1710781858503,-531.87,0.00021999,2]
[319454509,1710781858512,-1405.18,0.00021999,2]
[319454510,1710781858522,-1026.01,0.00021999,2]
[319454511,1710781858531,-500.0,0.00021999,2]
[319454512,1710781858541,-500.0,0.00021999,2]
[319454513,1710781858550,-500.0,0.00021999,2]
[319454514,1710781858560,-500.0,0.00021999,2]
[319454515,1710781858570,-500.0,0.00021999,2]
[319454516,1710781858579,-500.0,0.00021999,2]
[319454517,1710781858588,-500.0,0.00021999,2]
[319454518,1710781858597,-500.0,0.00021999,2]
[319454519,1710781858608,-500.0,0.00021999,2]
[319454520,1710781858618,-500.0,0.00021999,2]
[319454521,1710781858629,-500.0,0.00021999,2]
[319454522,1710781858638,-500.0,0.00021999,2]
[319454523,1710781858647,-500.0,0.00021999,2]
[319454524,1710781858656,-500.81937105,0.00021999,2]
[319454525,1710781858665,-1157.32,0.00021999,2]
[319454526,1710781858674,-603.89,0.00021999,2]
[319454527,1710781858683,-500.0,0.00021999,2]
[319454528,1710781858692,-2653.3,0.00021999,2]
[319454529,1710781858701,-2653.3,0.00021999,2]
[319454530,1710781858710,-2653.3,0.00021999,2]
[319454531,1710781858719,-2653.3,0.00021999,2]
[319454532,1710781858729,-2653.3,0.00021999,2]